fUSD/lending_fUSD_20240220
["ID","MTS","AMOUNT","RATE_DAILY","PERIOD"]
[314585239,1708434692955,-500.0,0.00037534,2]
[314585240,1708434692964,-500.0,0.00037534,2]
[314585241,1708434692973,-500.0,0.00037534,2]
[314585242,1708434692983,-622.47,0.00037534,2]
[314585243,1708434692991,-500.0,0.00037534,2]
[314585244,1708434693001,-500.0,0.00037534,2]
[314585245,1708434693010,-500.0,0.00037534,2]
[314585246,1708434693020,-500.0,0.00037534,2]
[314585247,1708434693032,-500.0,0.00037534,2]
[314585248,1708434693042,-500.0,0.00037534,2]
[314585249,1708434693052,-817.94,0.00037534,2]
[314585250,1708434693062,-558.37,0.00037534,2]
[314585251,1708434693071,-594.24,0.00037534,2]
[314585252,1708434693081,-5587.51,0.00037534,2]
[314585253,1708434693090,-500.0,0.00037534,2]
[314585254,1708434693100,-500.0,0.00037534,2]
[314585255,1708434693109,-500.0,0.00037534,2]
[314585256,1708434693119,-543.6,0.00037534,2]
[314585257,1708434693129,-500.0,0.00037534,2]
[314585258,1708434693138,-500.0,0.00037534,2]
[314585259,1708434693148,-913.06,0.00037534,2]
[314585260,1708434693157,-500.0,0.00037534,2]
[314585261,1708434693167,-500.0,0.00037534,2]
[314585262,1708434693176,-514.51,0.00037534,2]
[314585263,1708434693187,-500.0,0.00037534,2]
[314585264,1708434693197,-500.0,0.00037534,2]
[314585265,1708434693207,-500.0,0.00037534,2]
[314585266,1708434693216,-500.0,0.00037534,2]
[314585267,1708434693226,-993.85,0.00037534,2]
[314585268,1708434693235,-500.0,0.00037534,2]
[314585269,1708434693246,-500.0,0.00037534,2]
[314585270,1708434693257,-500.0,0.00037534,2]
[314585271,1708434693267,-500.0,0.00037534,2]
[314585272,1708434693277,-558.85839936,0.00037534,2]
[314585273,1708434693287,-500.0,0.00037534,2]
[314585274,1708434693298,-563.28269174,0.00037534,2]
[314585275,1708434693308,-500.0,0.00037534,2]
[314585276,1708434693318,-500.0,0.00037534,2]
[314585277,1708434693328,-428.9,0.00037534,2]
[314585278,1708434693338,-500.0,0.00037534,2]
[314585279,1708434693349,-500.0,0.00037534,2]
[314585280,1708434693359,-500.0,0.00037534,2]
[314585281,1708434693369,-500.0,0.00037534,2]
[314585282,1708434693379,-500.0,0.00037534,2]
[314585283,1708434693389,-500.0,0.00037534,2]
[314585284,1708434693399,-500.0,0.00037534,2]
[314585285,1708434693409,-500.0,0.00037534,2]
[314585286,1708434693419,-500.0,0.00037534,2]
[314585287,1708434693429,-500.0,0.00037534,2]
[314585288,1708434693441,-500.0,0.00037534,2]
[314585289,1708434693451,-500.0,0.00037534,2]
[314585290,1708434693461,-500.0,0.00037534,2]
[314585291,1708434693472,-500.0,0.00037534,2]
[314585292,1708434693485,-500.0,0.00037534,2]
[314585293,1708434693495,-500.0,0.00037534,2]
[314585294,1708434693506,-500.0,0.00037534,2]
[314585295,1708434693517,-5294.69,0.00037534,2]
[314585296,1708434693527,-500.0,0.00037534,2]
[314585297,1708434693537,-1339.34,0.00037534,2]
[314585298,1708434693547,-1308.05,0.00037534,2]
[314585299,1708434693557,-500.0,0.00037534,2]
[314585300,1708434693567,-500.0,0.00037534,2]
[314585301,1708434693577,-500.0,0.00037534,2]
[314585302,1708434693587,-500.0,0.00037534,2]
[314585303,1708434693759,-921.2,0.00037534,2]
[314585304,1708434693769,-500.0,0.00037534,2]
[314585305,1708434693790,-500.0,0.00037534,2]
[314585306,1708434693801,-500.0,0.00037534,2]
[314585307,1708434693812,-500.0,0.00037534,2]
[314585308,1708434693822,-500.0,0.00037534,2]
[314585309,1708434693832,-500.0,0.00037534,2]
[314585310,1708434693843,-808.94,0.00037534,2]
[314585311,1708434693853,-500.0,0.00037534,2]
[314585312,1708434693863,-1782.46,0.00037534,2]
[314585313,1708434693873,-500.0,0.00037534,2]
[314585314,1708434693883,-500.0,0.00037534,2]
[314585315,1708434693894,-195.49874344,0.00037534,2]
[314585316,1708434693904,-832.43,0.00037534,2]
[314585317,1708434693914,-500.0,0.00037534,2]
[314585318,1708434693924,-500.0,0.00037534,2]
[314585319,1708434693936,-500.0,0.00037534,2]
[314585320,1708434693947,-566.48,0.00037534,2]
[314585321,1708434693958,-4708.33,0.00037534,2]
[314585322,1708434693968,-500.0,0.00037534,2]
[314585323,1708434693979,-500.0,0.00037534,2]
[314585324,1708434693989,-500.0,0.00037534,2]
[314585325,1708434694000,-500.0,0.00037534,2]
[314585326,1708434694012,-844.64,0.00037534,2]
[314585327,1708434694024,-500.0,0.00037534,2]
[314585328,1708434694037,-500.0,0.00037534,2]
[314585329,1708434694048,-500.0,0.00037534,2]
[314585330,1708434694061,-500.0,0.00037534,2]
[314585331,1708434694073,-500.0,0.00037534,2]
[314585332,1708434694084,-500.0,0.00037534,2]
[314585333,1708434694095,-500.0,0.00037534,2]
[314585334,1708434694106,-500.0,0.00037534,2]
[314585335,1708434694116,-500.0,0.00037534,2]
[314585336,1708434694126,-516.23,0.00037534,2]
[314585337,1708434694136,-570.14,0.00037534,2]
[314585338,1708434694147,-500.0,0.00037534,2]
[314585339,1708434694158,-500.0,0.00037534,2]
[314585340,1708434694169,-725.87,0.00037534,2]
[314585341,1708434694180,-500.0,0.00037534,2]
[314585342,1708434694192,-500.0,0.00037534,2]
[314585343,1708434694202,-413.52472136,0.00037534,2]
[314585344,1708434694213,-500.0,0.00037534,2]
[314585345,1708434694224,-500.0,0.00037534,2]
[314585346,1708434694233,-882.96,0.00037534,2]
[314585347,1708434694243,-486.14,0.00037534,2]
[314585348,1708434694254,-500.0,0.00037534,2]
[314585349,1708434694266,-500.0,0.00037534,2]
[314585350,1708434694277,-580.24,0.00037534,2]
[314585351,1708434694287,-500.0,0.00037534,2]
[314585352,1708434694298,-500.0,0.00037534,2]
[314585353,1708434694309,-500.0,0.00037534,2]
[314585354,1708434694319,-621.44,0.00037534,2]
[314585355,1708434694330,-2098.72,0.00037534,2]
[314585356,1708434694340,-500.0,0.00037534,2]
[314585357,1708434694350,-500.0,0.00037534,2]
[314585358,1708434694361,-500.0,0.00037534,2]
[314585359,1708434694371,-500.0,0.00037534,2]
[314585360,1708434694381,-500.0,0.00037534,2]
[314585361,1708434694391,-500.0,0.00037534,2]
[314585362,1708434694402,-796.99,0.00037534,2]
[314585363,1708434694411,-1110.32,0.00037534,2]
[314585364,1708434694421,-593.91,0.00037534,2]
[314585365,1708434694431,-500.0,0.00037534,2]
[314585366,1708434694442,-500.0,0.00037534,2]
[314585367,1708434694452,-500.0,0.00037534,2]
[314585368,1708434694462,-500.0,0.00037534,2]
[314585369,1708434694473,-500.0,0.00037534,2]
[314585370,1708434694485,-500.0,0.00037534,2]
[314585371,1708434694495,-529.69,0.00037534,2]
[314585372,1708434694505,-500.0,0.00037534,2]
[314585373,1708434694515,-506.06,0.00037534,2]
[314585374,1708434694525,-737.54,0.00037534,2]
[314585375,1708434694535,-500.0,0.00037534,2]
[314585376,1708434694546,-1934.46,0.00037534,2]
[314585377,1708434694557,-500.0,0.00037534,2]
[314585378,1708434694567,-500.0,0.00037534,2]
[314585379,1708434694578,-500.0,0.00037534,2]
[314585380,1708434694588,-500.0,0.00037534,2]
[314585381,1708434694598,-500.0,0.00037534,2]
[314585382,1708434694609,-524.0,0.00037534,2]
[314585383,1708434694619,-500.0,0.00037534,2]
[314585384,1708434694630,-500.0,0.00037534,2]
[314585385,1708434694640,-500.0,0.00037534,2]
[314585386,1708434694651,-1163.52,0.00037534,2]
[314585387,1708434694661,-500.0,0.00037534,2]
[314585388,1708434694672,-500.0,0.00037534,2]
[314585389,1708434694683,-681.01,0.00037534,2]
[314585390,1708434694694,-500.0,0.00037534,2]
[314585391,1708434694704,-500.0,0.00037534,2]
[314585392,1708434694714,-500.0,0.00037534,2]
[314585393,1708434694725,-500.0,0.00037534,2]
[314585394,1708434694735,-500.0,0.00037534,2]
[314585395,1708434694746,-500.0,0.00037534,2]
[314585396,1708434694756,-500.0,0.00037534,2]
[314585397,1708434694767,-5986.50396251,0.00037589,10]
[314585398,1708434694777,-180.0,0.00037671,2]
[314585399,1708434694786,-387.24,0.000377,3]
[314585400,1708434694796,-174.39240563,0.00037733,2]
[314585401,1708434694806,-177.58,0.00037788,2]
[314585402,1708434694815,-500.0,0.00037808,2]
[314585403,1708434694825,-500.0,0.00037808,2]
[314585404,1708434694834,-560.3362428,0.00037808,2]
[314585405,1708434694844,-500.0,0.00037808,2]
[314585406,1708434694853,-500.0,0.00037808,2]
[314585407,1708434694863,-500.0,0.00037808,2]
[314585408,1708434694872,-500.0,0.00037808,2]
[314585409,1708434694882,-500.0,0.00037808,2]
[314585410,1708434694892,-500.0,0.00037808,2]
[314585411,1708434694902,-337.83183463,0.00037808,2]
[314585412,1708434694912,-563.96,0.00037808,2]
[314585413,1708434694921,-500.0,0.00037808,2]
[314585414,1708434694931,-500.0,0.00037808,2]
[314585415,1708434694942,-500.0,0.00037808,2]
[314585416,1708434694951,-156.93,0.00037808,2]
[314585417,1708434694961,-500.0,0.00037808,2]
[314585418,1708434694970,-418.04,0.00037808,2]
[314585419,1708434694980,-228.46,0.00037808,2]
[314585420,1708434694989,-500.0,0.00037808,2]
[314585421,1708434694999,-500.0,0.00037808,2]
[314585422,1708434695008,-209.0,0.00037808,2]
[314585423,1708434695019,-500.0,0.00037808,2]
[314585424,1708434695030,-500.0,0.00037808,2]
[314585425,1708434695041,-215.76,0.00037808,2]
[314585426,1708434695051,-204.36,0.00037808,2]
[314585427,1708434695061,-500.0,0.00037808,2]
[314585428,1708434695071,-500.0,0.00037808,2]
[314585429,1708434695081,-288.85,0.00037808,2]
[314585430,1708434695093,-500.0,0.00037808,2]
[314585431,1708434695103,-500.0,0.00037808,2]
[314585432,1708434695112,-500.0,0.00037808,2]
[314585433,1708434695123,-300.8,0.00037808,2]
[314585434,1708434695132,-817.94,0.00037808,2]
[314585435,1708434695142,-594.24,0.00037808,2]
[314585436,1708434695152,-5587.51,0.00037808,2]
[314585437,1708434695162,-500.0,0.00037808,2]
[314585438,1708434695171,-300.29,0.00037808,2]
[314585439,1708434695180,-543.6,0.00037808,2]
[314585440,1708434695190,-500.0,0.00037808,2]
[314585441,1708434695200,-913.06,0.00037808,2]
[314585442,1708434695210,-500.0,0.00037808,2]
[314585443,1708434695219,-500.0,0.00037808,2]
[314585444,1708434695229,-518.31,0.00037808,2]
[314585445,1708434695239,-500.0,0.00037808,2]
[314585446,1708434695249,-500.0,0.00037808,2]
[314585447,1708434695259,-993.85,0.00037808,2]
[314585448,1708434695269,-500.0,0.00037808,2]
[314585449,1708434695278,-500.0,0.00037808,2]
[314585450,1708434695289,-500.0,0.00037808,2]
[314585451,1708434695299,-500.0,0.00037808,2]
[314585452,1708434695309,-500.0,0.00037808,2]
[314585453,1708434695319,-500.0,0.00037808,2]
[314585454,1708434695329,-622.67,0.00037808,2]
[314585455,1708434695339,-500.0,0.00037808,2]
[314585456,1708434695350,-500.0,0.00037808,2]
[314585457,1708434695360,-500.0,0.00037808,2]
[314585458,1708434695369,-500.0,0.00037808,2]
[314585459,1708434695380,-500.0,0.00037808,2]
[314585460,1708434695390,-500.0,0.00037808,2]
[314585461,1708434695400,-200.83,0.00037808,2]
[314585462,1708434695410,-500.0,0.00037808,2]
[314585463,1708434695421,-500.0,0.00037808,2]
[314585464,1708434695430,-500.0,0.00037808,2]
[314585465,1708434695442,-500.0,0.00037808,2]
[314585466,1708434695452,-500.0,0.00037808,2]
[314585467,1708434695464,-500.0,0.00037808,2]
[314585468,1708434695477,-5294.69,0.00037808,2]
[314585469,1708434695487,-500.0,0.00037808,2]
[314585470,1708434695497,-1339.34,0.00037808,2]
[314585471,1708434695508,-1308.05,0.00037808,2]
[314585472,1708434695518,-570.32,0.00037808,2]
[314585473,1708434695527,-500.0,0.00037808,2]
[314585474,1708434695537,-921.2,0.00037808,2]
[314585475,1708434695548,-217.18,0.00037808,2]
[314585476,1708434695558,-500.0,0.00037808,2]
[314585477,1708434695570,-500.0,0.00037808,2]
[314585478,1708434695580,-500.0,0.00037808,2]
[314585479,1708434695590,-500.0,0.00037808,2]
[314585480,1708434695600,-500.0,0.00037808,2]
[314585481,1708434695611,-808.94,0.00037808,2]
[314585482,1708434695621,-500.0,0.00037808,2]
[314585483,1708434695632,-1782.46,0.00037808,2]
[314585484,1708434695642,-500.0,0.00037808,2]
[314585485,1708434695653,-832.43,0.00037808,2]
[314585486,1708434695663,-500.0,0.00037808,2]
[314585487,1708434695673,-500.0,0.00037808,2]
[314585488,1708434695683,-500.0,0.00037808,2]
[314585489,1708434695695,-4708.33,0.00037808,2]
[314585490,1708434695705,-500.0,0.00037808,2]
[314585491,1708434695716,-500.0,0.00037808,2]
[314585492,1708434695726,-844.64,0.00037808,2]
[314585493,1708434695737,-500.0,0.00037808,2]
[314585494,1708434695746,-500.0,0.00037808,2]
[314585495,1708434695757,-500.0,0.00037808,2]
[314585496,1708434695767,-500.0,0.00037808,2]
[314585497,1708434695778,-500.0,0.00037808,2]
[314585498,1708434695788,-500.0,0.00037808,2]
[314585499,1708434695799,-500.0,0.00037808,2]
[314585500,1708434695810,-500.0,0.00037808,2]
[314585501,1708434695821,-516.23,0.00037808,2]
[314585502,1708434695833,-570.14,0.00037808,2]
[314585503,1708434695843,-500.0,0.00037808,2]
[314585504,1708434695854,-725.87,0.00037808,2]
[314585505,1708434695865,-500.0,0.00037808,2]
[314585506,1708434695875,-500.0,0.00037808,2]
[314585507,1708434695886,-500.0,0.00037808,2]
[314585508,1708434695897,-882.96,0.00037808,2]
[314585509,1708434695907,-500.0,0.00037808,2]
[314585510,1708434695918,-580.24,0.00037808,2]
[314585511,1708434695929,-481.6,0.00037808,2]
[314585512,1708434695941,-500.0,0.00037808,2]
[314585513,1708434695952,-500.0,0.00037808,2]
[314585514,1708434695962,-2098.72,0.00037808,2]
[314585515,1708434695971,-500.0,0.00037808,2]
[314585516,1708434695981,-500.0,0.00037808,2]
[314585517,1708434695991,-500.0,0.00037808,2]
[314585518,1708434696002,-500.0,0.00037808,2]
[314585519,1708434696012,-500.0,0.00037808,2]
[314585520,1708434696021,-500.0,0.00037808,2]
[314585521,1708434696032,-796.99,0.00037808,2]
[314585522,1708434696042,-1110.32,0.00037808,2]
[314585523,1708434696051,-593.91,0.00037808,2]
[314585524,1708434696061,-455.11,0.00037808,2]
[314585525,1708434696077,-500.0,0.00037808,2]
[314585526,1708434696087,-518.32,0.00037808,2]
[314585527,1708434696097,-500.0,0.00037808,2]
[314585528,1708434696106,-500.0,0.00037808,2]
[314585529,1708434696116,-500.0,0.00037808,2]
[314585530,1708434696126,-737.54,0.00037808,2]
[314585531,1708434696138,-1934.46,0.00037808,2]
[314585532,1708434696147,-500.0,0.00037808,2]
[314585533,1708434696157,-500.0,0.00037808,2]
[314585534,1708434696167,-500.0,0.00037808,2]
[314585535,1708434696177,-500.0,0.00037808,2]
[314585536,1708434696187,-500.0,0.00037808,2]
[314585537,1708434696198,-500.0,0.00037808,2]
[314585538,1708434696208,-500.0,0.00037808,2]
[314585539,1708434696217,-500.0,0.00037808,2]
[314585540,1708434696227,-1163.52,0.00037808,2]
[314585541,1708434696236,-500.0,0.00037808,2]
[314585542,1708434696247,-681.01,0.00037808,2]
[314585543,1708434696257,-300.75,0.00037808,2]
[314585544,1708434696267,-343.12,0.00037808,2]
[314585545,1708434696277,-500.0,0.00037808,2]
[314585546,1708434696287,-500.0,0.00037808,2]
[314585547,1708434696297,-500.0,0.00037808,2]
[314585548,1708434696306,-1876.406,0.00037836,2]
[314585549,1708434696315,-2691.0,0.00037836,2]
[314585550,1708434696325,-533.0,0.00037836,2]
[314585551,1708434696335,-457.434,0.00037836,2]
[314585552,1708434696344,-954.0,0.00037836,2]
[314585553,1708434696354,-843.0,0.00037836,2]
[314585554,1708434696363,-709.0,0.00037836,2]
[314585555,1708434696372,-600.0,0.00037836,2]
[314585556,1708434696381,-1231.0,0.00037836,2]
[314585557,1708434696391,-285.342,0.00037836,2]
[314585558,1708434696400,-1951.0,0.00037836,2]
[314585559,1708434696410,-1256.0,0.00037836,2]
[314585560,1708434696419,-574.143,0.00037836,2]
[314585561,1708434696429,-1020.795,0.00037836,2]
[314585562,1708434696439,-316.516,0.00037836,2]
[314585563,1708434696448,-862.676,0.00037836,2]
[314585564,1708434696458,-1139.901,0.00037836,2]
[314585565,1708434696469,-337.0,0.00037836,2]
[314585566,1708434696479,-332.643,0.00037836,2]
[314585567,1708434696488,-2888.0,0.00037836,2]
[314585568,1708434696497,-256.685,0.00037836,2]
[314585569,1708434696507,-2494.907,0.00037836,2]
[314585570,1708434696516,-389.0,0.00037836,2]
[314585571,1708434696527,-461.7,0.00037836,2]
[314585572,1708434696538,-5986.50396251,0.00037844,11]
[314585573,1708434696549,-255.90538437,0.00037844,2]
[314585574,1708434696559,-2761.33628143,0.00037879,2]
[314585575,1708434696569,-200.0,0.0003789,7]
[314585576,1708434696580,-208.0,0.00037895,15]
[314585577,1708434696590,-672500.602415,0.000379,2]
[314585578,1708434696601,-154.23,0.00037965,2]
[314585579,1708434696611,-611.99,0.00038082,2]
[314585580,1708434696622,-500.0,0.00038082,2]
[314585581,1708434696633,-500.0,0.00038082,2]
[314585582,1708434696645,-500.0,0.00038082,2]
[314585583,1708434696656,-500.0,0.00038082,2]
[314585584,1708434696666,-500.0,0.00038082,2]
[314585585,1708434696677,-500.0,0.00038082,2]
[314585586,1708434696687,-500.0,0.00038082,2]
[314585587,1708434696697,-619.14,0.00038082,2]
[314585588,1708434696706,-500.0,0.00038082,2]
[314585589,1708434696716,-525.3,0.00038082,2]
[314585590,1708434696726,-547.54,0.00038082,2]
[314585591,1708434696735,-500.0,0.00038082,2]
[314585592,1708434696745,-500.0,0.00038082,2]
[314585593,1708434696754,-425.56,0.00038082,2]
[314585594,1708434696764,-523.6,0.00038082,2]
[314585595,1708434696773,-817.94,0.00038082,2]
[314585596,1708434696782,-594.24,0.00038082,2]
[314585597,1708434696791,-5587.51,0.00038082,2]
[314585598,1708434696800,-500.0,0.00038082,2]
[314585599,1708434696810,-543.6,0.00038082,2]
[314585600,1708434696819,-500.0,0.00038082,2]
[314585601,1708434696829,-913.06,0.00038082,2]
[314585602,1708434696838,-500.0,0.00038082,2]
[314585603,1708434696848,-500.0,0.00038082,2]
[314585604,1708434696857,-500.0,0.00038082,2]
[314585605,1708434696867,-500.0,0.00038082,2]
[314585606,1708434696876,-993.85,0.00038082,2]
[314585607,1708434696886,-500.0,0.00038082,2]
[314585608,1708434696895,-500.0,0.00038082,2]
[314585609,1708434696904,-500.0,0.00038082,2]
[314585610,1708434696913,-500.0,0.00038082,2]
[314585611,1708434696922,-500.0,0.00038082,2]
[314585612,1708434696932,-500.0,0.00038082,2]
[314585613,1708434696942,-500.0,0.00038082,2]
[314585614,1708434696951,-500.0,0.00038082,2]
[314585615,1708434696961,-500.0,0.00038082,2]
[314585616,1708434696970,-500.0,0.00038082,2]
[314585617,1708434696979,-500.0,0.00038082,2]
[314585618,1708434696989,-500.0,0.00038082,2]
[314585619,1708434696997,-500.0,0.00038082,2]
[314585620,1708434697007,-500.0,0.00038082,2]
[314585621,1708434697017,-500.0,0.00038082,2]
[314585622,1708434697026,-500.0,0.00038082,2]
[314585623,1708434697037,-500.0,0.00038082,2]
[314585624,1708434697047,-500.0,0.00038082,2]
[314585625,1708434697057,-5294.69,0.00038082,2]
[314585626,1708434697067,-296.57,0.00038082,2]
[314585627,1708434697077,-1308.05,0.00038082,2]
[314585628,1708434697086,-1339.34,0.00038082,2]
[314585629,1708434697096,-921.2,0.00038082,2]
[314585630,1708434697105,-500.0,0.00038082,2]
[314585631,1708434697115,-500.0,0.00038082,2]
[314585632,1708434697124,-500.0,0.00038082,2]
[314585633,1708434697133,-500.0,0.00038082,2]
[314585634,1708434697143,-500.0,0.00038082,2]
[314585635,1708434697153,-500.0,0.00038082,2]
[314585636,1708434697163,-808.94,0.00038082,2]
[314585637,1708434697173,-500.0,0.00038082,2]
[314585638,1708434697183,-1782.46,0.00038082,2]
[314585639,1708434697194,-500.0,0.00038082,2]
[314585640,1708434697203,-832.43,0.00038082,2]
[314585641,1708434697213,-500.0,0.00038082,2]
[314585642,1708434697222,-500.0,0.00038082,2]
[314585643,1708434697232,-385.61,0.00038082,2]
[314585644,1708434697242,-4708.33,0.00038082,2]
[314585645,1708434697252,-500.0,0.00038082,2]
[314585646,1708434697261,-500.0,0.00038082,2]
[314585647,1708434697271,-844.64,0.00038082,2]
[314585648,1708434697469,-500.0,0.00038082,2]
[314585649,1708434697481,-500.0,0.00038082,2]
[314585650,1708434697491,-500.0,0.00038082,2]
[314585651,1708434697501,-500.0,0.00038082,2]
[314585652,1708434697511,-500.0,0.00038082,2]
[314585653,1708434697521,-500.0,0.00038082,2]
[314585654,1708434697531,-500.0,0.00038082,2]
[314585655,1708434697541,-500.0,0.00038082,2]
[314585656,1708434697550,-516.23,0.00038082,2]
[314585657,1708434697561,-570.14,0.00038082,2]
[314585658,1708434697570,-500.0,0.00038082,2]
[314585659,1708434697580,-725.87,0.00038082,2]
[314585660,1708434697589,-500.0,0.00038082,2]
[314585661,1708434697599,-500.0,0.00038082,2]
[314585662,1708434697608,-500.0,0.00038082,2]
[314585663,1708434697617,-882.96,0.00038082,2]
[314585664,1708434697627,-500.0,0.00038082,2]
[314585665,1708434697637,-580.24,0.00038082,2]
[314585666,1708434697647,-500.0,0.00038082,2]
[314585667,1708434697657,-500.0,0.00038082,2]
[314585668,1708434697666,-2098.72,0.00038082,2]
[314585669,1708434697676,-500.0,0.00038082,2]
[314585670,1708434697685,-500.0,0.00038082,2]
[314585671,1708434697696,-500.0,0.00038082,2]
[314585672,1708434697706,-332.95,0.00038082,2]
[314585673,1708434697716,-500.0,0.00038082,2]
[314585674,1708434697725,-500.0,0.00038082,2]
[314585675,1708434697734,-796.99,0.00038082,2]
[314585676,1708434697744,-1110.32,0.00038082,2]
[314585677,1708434697754,-593.91,0.00038082,2]
[314585678,1708434697763,-500.0,0.00038082,2]
[314585679,1708434697773,-500.0,0.00038082,2]
[314585680,1708434697782,-518.13,0.00038082,2]
[314585681,1708434697792,-500.0,0.00038082,2]
[314585682,1708434697801,-737.54,0.00038082,2]
[314585683,1708434697811,-1934.46,0.00038082,2]
[314585684,1708434697821,-500.0,0.00038082,2]
[314585685,1708434697830,-598.47,0.00038082,2]
[314585686,1708434697839,-500.0,0.00038082,2]
[314585687,1708434697850,-500.0,0.00038082,2]
[314585688,1708434697860,-500.0,0.00038082,2]
[314585689,1708434697869,-500.0,0.00038082,2]
[314585690,1708434697879,-277.54,0.00038082,2]
[314585691,1708434697888,-500.0,0.00038082,2]
[314585692,1708434697898,-1163.52,0.00038082,2]
[314585693,1708434697907,-500.0,0.00038082,2]
[314585694,1708434697917,-681.01,0.00038082,2]
[314585695,1708434697926,-500.0,0.00038082,2]
[314585696,1708434697936,-500.0,0.00038082,2]
[314585697,1708434697947,-500.0,0.00038082,2]
[314585698,1708434697957,-2777.0,0.000381,3]
[314585699,1708434697966,-11138.0,0.000381,3]
[314585700,1708434697976,-177.58,0.00038336,2]
[314585701,1708434697985,-153.55220965,0.00038344,2]
[314585702,1708434697993,-3705.89,0.00038352,2]
[314585703,1708434698002,-500.0,0.00038356,2]
[314585704,1708434698012,-500.0,0.00038356,2]
[314585705,1708434698021,-268.94,0.00038356,2]
[314585706,1708434698032,-274.29201164,0.00038356,2]
[314585707,1708434698042,-500.0,0.00038356,2]
[314585708,1708434698052,-560.53,0.00038356,2]
[314585709,1708434698061,-500.0,0.00038356,2]
[314585710,1708434698071,-500.0,0.00038356,2]
[314585711,1708434698080,-496.58,0.00038356,2]
[314585712,1708434698089,-500.0,0.00038356,2]
[314585713,1708434698098,-817.94,0.00038356,2]
[314585714,1708434698108,-594.24,0.00038356,2]
[314585715,1708434698117,-5587.51,0.00038356,2]
[314585716,1708434698126,-500.0,0.00038356,2]
[314585717,1708434698135,-543.6,0.00038356,2]
[314585718,1708434698144,-500.0,0.00038356,2]
[314585719,1708434698154,-913.06,0.00038356,2]
[314585720,1708434698163,-341.85,0.00038356,2]
[314585721,1708434698171,-500.0,0.00038356,2]
[314585722,1708434698182,-500.0,0.00038356,2]
[314585723,1708434698191,-500.0,0.00038356,2]
[314585724,1708434698201,-993.85,0.00038356,2]
[314585725,1708434698209,-500.0,0.00038356,2]
[314585726,1708434698218,-500.0,0.00038356,2]
[314585727,1708434698228,-500.0,0.00038356,2]
[314585728,1708434698237,-500.0,0.00038356,2]
[314585729,1708434698247,-500.0,0.00038356,2]
[314585730,1708434698256,-500.0,0.00038356,2]
[314585731,1708434698265,-500.0,0.00038356,2]
[314585732,1708434698275,-500.0,0.00038356,2]
[314585733,1708434698285,-500.0,0.00038356,2]
[314585734,1708434698294,-500.0,0.00038356,2]
[314585735,1708434698304,-500.0,0.00038356,2]
[314585736,1708434698313,-500.0,0.00038356,2]
[314585737,1708434698327,-500.0,0.00038356,2]
[314585738,1708434698336,-500.0,0.00038356,2]